bitfinex/quotes_ETHUSD_20250620
["timestamp","ask_amount","ask_price","bid_price","bid_amount"]
[1750414524231,0.58671152,2552.8,2552.7,3.91736124]
[1750414524434,0.22001703,2552.8,2552.7,3.91736124]
[1750414524612,0.58671209,2552.8,2552.7,3.91736124]
[1750414524921,0.58669311,2552.8,2552.7,3.91736124]
[1750414526130,0.58668581,2552.8,2552.6,3.91749613]
[1750414526431,0.03907112,2552.7,2552.6,3.91749613]
[1750414526827,0.03907112,2552.7,2552.5,3.91760291]
[1750414527032,6.38707112,2552.7,2552.4,3.9177888]
[1750414527234,8.13482734,2552.6,2552.1,3.91834175]
[1750414527547,0.62575634,2552.5,2552.3,3.91797109]
[1750414527854,0.03907112,2552.5,2552.3,3.91797109]
[1750414528151,0.62579448,2552.5,2552.3,3.91797109]
[1750414528451,0.25909238,2552.5,2552.3,3.91797109]
[1750414528654,0.62579405,2552.5,2552.3,3.91797109]
[1750414528814,0.40577279,2552.5,2552.3,3.91797109]
[1750414529015,0.62559784,2552.5,2552.3,3.91797109]
[1750414529529,0.62559784,2552.5,2552.4,3.9178812]
[1750414529723,0.62559784,2552.5,2552.3,3.91798889]
[1750414529928,0.36657935,2552.4,2552.2,3.91808397]
[1750414530128,0.62559799,2552.5,2552.2,3.91808397]
[1750414530635,0.62559799,2552.5,2552.3,3.9180088]
[1750414530811,0.62559799,2552.5,2552.4,3.9178812]
[1750414531229,0.6255218,2552.5,2552.4,3.9178812]
[1750414531441,0.62552142,2552.5,2552.3,3.91797218]
[1750414531942,0.62552142,2552.5,2552.0,3.91841215]
[1750414531943,7.32176978,2552.4,2552.0,3.91841215]
[1750414532155,7.73869878,2552.3,2552.0,3.91841215]
[1750414532360,0.58634947,2552.2,2552.0,3.91841215]
[1750414532520,0.03907112,2552.1,2552.0,3.91841215]
[1750414532723,0.03907112,2552.1,2551.8,3.91873727]
[1750414533057,0.03907112,2552.1,2551.8,3.91871624]
[1750414533258,1.66907112,2552.1,2551.7,3.91888308]
[1750414533436,1.66907112,2552.1,2551.8,3.91871252]
[1750414534132,1.66907112,2552.1,2551.7,3.91889228]
[1750414534938,1.66907112,2552.1,2551.7,3.91895599]
[1750414535758,1.66907112,2552.1,2551.8,3.91878913]
[1750414537163,6.348,2552.0,2551.8,3.91878913]
[1750414537364,0.03907112,2551.9,2551.8,3.91878913]
[1750414539243,0.03907112,2551.9,2551.7,3.91887748]
[1750414540653,6.73544212,2551.8,2551.3,3.91948]
[1750414540860,0.03907112,2551.7,2551.5,3.91917958]
[1750414541054,0.03907112,2551.7,2551.6,3.91910957]
[1750414541262,0.25865903,2551.9,2551.5,3.91918408]
[1750414541635,0.2586452,2551.9,2551.5,3.91918408]
[1750414542256,0.62460496,2551.9,2551.5,3.91918408]
[1750414542568,0.62460496,2551.9,2551.4,3.91930838]
[1750414542569,3.95773861,2551.9,2551.4,3.9193511]
[1750414543232,10.65426,2551.8,2551.3,3.91950294]
[1750414543434,0.80747112,2551.7,2551.4,3.91938233]
[1750414543637,6.349,2551.6,2551.4,3.91938233]
[1750414543861,0.03907112,2551.5,2551.4,3.91938233]
[1750414545268,6.349,2551.6,2551.5,3.91926317]
[1750414546943,0.7918,2551.9,2551.7,3.91884445]
[1750414547148,7.979,2551.8,2551.7,3.91895599]
[1750414547686,0.38325926,2552.0,2551.8,3.91869483]
[1750414547984,7.979,2551.9,2551.8,3.91869483]
[1750414548810,7.979,2551.9,2551.7,3.91887876]
[1750414549006,0.03907112,2551.8,2551.7,3.91887876]
[1750414549789,0.03907112,2551.8,2551.7,3.86887876]
[1750414550687,7.979,2551.9,2551.7,3.86887876]
[1750414551652,7.979,2551.9,2551.7,3.81887876]
[1750414552290,6.349,2551.9,2551.7,3.91887553]
[1750414552451,6.38807112,2551.9,2551.7,3.91887553]
[1750414552949,6.38807112,2551.9,2551.6,3.91900487]
[1750414553312,6.38807112,2551.9,2551.7,3.91889258]
[1750414553606,6.38807112,2551.9,2551.7,3.86889258]
[1750414555254,6.38807112,2551.9,2551.7,3.81889258]
[1750414555576,6.38807112,2551.9,2551.7,3.91895599]
[1750414556452,0.21987289,2551.8,2551.6,3.91903097]
[1750414557188,0.21987289,2551.8,2551.6,3.86903097]
[1750414557350,0.21988885,2551.8,2551.6,3.86903097]
[1750414558283,6.38807112,2551.9,2551.6,3.86903097]
[1750414559358,6.38807112,2551.9,2551.6,3.81903097]
[1750414559559,6.38807112,2551.9,2551.5,4.69148699]
[1750414560185,6.38807112,2551.9,2551.6,3.91908897]
[1750414560576,6.38807112,2551.9,2551.7,3.91893244]
[1750414561660,6.38807112,2551.9,2551.6,3.91901562]
[1750414562662,6.38807112,2551.9,2551.7,3.91894168]
[1750414563061,6.38807112,2551.9,2551.6,3.91904437]
[1750414563895,6.38807112,2551.9,2551.5,3.91920153]
[1750414564195,6.38807112,2551.9,2551.5,3.86920153]
[1750414564397,6.38807112,2551.9,2551.4,3.91940483]
[1750414564762,6.38807112,2551.9,2551.5,3.91919456]
[1750414565699,10.30672375,2551.9,2551.5,3.91919456]
[1750414566003,10.26765263,2551.9,2551.5,3.91919456]
[1750414566169,0.03907112,2551.8,2551.6,3.91908011]
[1750414566965,6.349,2551.9,2551.7,3.91895599]
[1750414566966,0.03907112,2551.9,2551.7,3.91895599]
[1750414567299,6.348,2551.9,2551.8,3.9186914]
[1750414567964,1.629,2552.1,2551.9,3.91864007]
[1750414568169,6.348,2552.0,2551.8,3.91880241]
[1750414568368,0.03907112,2552.0,2551.8,3.91880241]
[1750414568591,6.348,2552.0,2551.8,3.91880241]
[1750414568802,6.38707112,2552.0,2551.8,3.91880241]
[1750414569699,6.38707112,2552.0,2551.7,3.91887789]
[1750414570115,6.38707112,2552.0,2551.8,3.86876913]
[1750414570809,0.22045691,2551.9,2551.8,3.86876913]
[1750414571570,0.22045691,2551.9,2551.7,3.91886559]
[1750414571772,0.22045691,2551.8,2551.7,3.91886559]
[1750414572108,0.22045681,2551.8,2551.7,3.91886559]
[1750414572509,6.38707112,2552.0,2551.8,3.91872922]
[1750414572695,0.22044602,2551.9,2551.8,3.91872922]
[1750414573285,6.38707112,2552.0,2551.8,3.91872922]
[1750414573611,0.22044594,2551.9,2551.8,3.91872922]
[1750414574008,6.38707112,2552.0,2551.8,3.91872922]
[1750414574211,0.22044567,2551.9,2551.8,3.91872922]
[1750414574422,0.58784453,2551.9,2551.8,3.91872922]
[1750414574877,0.58785946,2551.9,2551.8,3.91872922]
[1750414575077,0.58785836,2551.9,2551.5,0.7846]
[1750414575277,0.62692948,2551.8,2551.6,3.91909772]
[1750414575480,0.58785836,2551.7,2551.6,3.91909772]
[1750414575930,0.58786782,2551.7,2551.6,3.91909772]
[1750414576315,0.58792159,2551.7,2551.6,3.91909772]
[1750414576878,0.58797164,2551.7,2551.6,3.91909772]
[1750414577933,0.22048936,2551.7,2551.6,3.91909772]
[1750414578138,0.58796657,2551.7,2551.6,3.91909772]
[1750414578302,0.58796621,2551.7,2551.6,3.91909772]
[1750414578627,0.58796285,2551.7,2551.6,3.91909772]
[1750414578797,0.36747721,2551.7,2551.6,3.91909772]
[1750414578999,0.03907112,2551.9,2551.6,3.91909772]
[1750414579201,0.58795705,2551.8,2551.6,3.91909772]
[1750414579526,0.03907112,2551.9,2551.7,3.91895599]
[1750414579729,0.58795487,2551.8,2551.7,3.91895599]
[1750414580292,0.03907112,2551.9,2551.8,3.91880241]
[1750414580513,0.62702051,2551.9,2551.8,3.91880241]
[1750414580990,0.62702051,2551.9,2551.7,3.91889249]
[1750414580991,0.62701806,2551.9,2551.7,3.91889249]
[1750414581293,0.58794694,2551.8,2551.7,3.91889249]
[1750414581894,0.58794383,2551.8,2551.7,3.91889249]
[1750414582230,0.58794276,2551.8,2551.7,3.91889249]
[1750414582606,0.03907112,2551.9,2551.8,3.91880241]
[1750414582819,0.62701521,2551.9,2551.8,3.91880241]
[1750414583195,0.62700536,2551.9,2551.8,3.91880241]
[1750414583729,0.62700619,2551.9,2551.8,3.91880241]
[1750414584207,0.62700862,2551.9,2551.8,3.91880241]
[1750414584530,0.5879375,2551.9,2551.8,3.91880241]
[1750414584753,6.38707112,2552.0,2551.9,3.91864884]
[1750414584962,6.93592189,2552.0,2551.9,3.91864884]
[1750414585318,6.60754183,2552.0,2551.9,3.91864884]
[1750414585637,6.97499384,2552.0,2551.9,3.91864884]
[1750414586054,6.97499315,2552.0,2551.9,3.91864884]
[1750414586358,6.60754183,2552.0,2551.9,3.91864884]
[1750414586653,6.97499191,2552.0,2551.9,3.91864884]
[1750414586821,6.97498808,2552.0,2551.9,3.91864884]
[1750414587560,6.97498808,2552.0,2551.7,3.9188945]
[1750414587859,0.58791917,2551.9,2551.7,3.91886126]
[1750414588022,0.58792843,2551.8,2551.7,3.91886126]
[1750414589059,0.58791981,2551.8,2551.7,3.91886126]
[1750414589258,6.38707112,2552.0,2551.8,3.91874535]
[1750414589461,0.58792476,2551.9,2551.8,3.91874535]
[1750414590978,6.38707112,2552.0,2551.8,3.91874535]
[1750414591137,0.58792508,2551.9,2551.8,3.91874535]
[1750414591521,0.58793598,2551.9,2551.8,3.91874535]
[1750414592347,0.58793471,2551.9,2551.8,3.91874535]
[1750414593567,0.58793466,2551.9,2551.8,3.91874535]
[1750414593867,0.58794832,2551.9,2551.8,3.91880241]
[1750414594068,0.58794832,2551.9,2551.7,3.9189032]
[1750414594272,0.5879511,2551.8,2551.7,3.9189032]
[1750414595376,0.5879511,2551.8,2551.6,3.91898789]
[1750414595562,0.5879511,2551.7,2551.6,3.91898789]
[1750414596067,0.3674677,2551.7,2551.6,3.91898789]
[1750414596273,0.58804192,2551.7,2551.6,3.91898789]
[1750414596650,0.83467112,2551.9,2551.7,3.91893509]
[1750414596849,0.5881197,2551.8,2551.7,3.91893509]
[1750414597673,0.5881197,2551.8,2551.6,3.91903253]
[1750414597873,0.5881197,2551.7,2551.6,3.91903253]
[1750414598171,0.58810656,2551.7,2551.6,3.91903253]
[1750414599041,0.58810121,2551.7,2551.6,3.91903253]
[1750414599344,0.58810086,2551.7,2551.6,3.91903253]
[1750414599538,0.03907112,2551.9,2551.8,3.91880241]
[1750414599852,6.97215902,2551.9,2551.8,3.91880241]
[1750414600264,6.97215902,2551.9,2551.6,3.91903253]
[1750414600265,6.97215902,2551.9,2551.7,3.91886378]
[1750414600437,0.5880879,2551.8,2551.7,3.91886378]
[1750414600644,0.58808601,2551.8,2551.7,3.91886378]
[1750414601474,0.95564197,2551.8,2551.7,3.91886378]
[1750414601840,0.95564551,2551.8,2551.7,3.91886378]
[1750414602365,0.95564557,2551.8,2551.7,3.91886378]
[1750414602970,0.95565453,2551.8,2551.7,3.91886378]
[1750414603175,0.95565459,2551.8,2551.7,3.91886378]
[1750414603505,0.95566969,2551.8,2551.7,3.91886378]
[1750414603681,0.95567267,2551.8,2551.7,3.91886378]
[1750414603976,0.95567701,2551.8,2551.7,3.91886378]
[1750414604178,0.36756935,2551.8,2551.7,3.91886378]
[1750414604355,0.95570813,2551.8,2551.7,3.91886378]
[1750414604680,0.95570816,2551.8,2551.7,3.91886378]
[1750414605272,0.22055207,2551.8,2551.7,3.91886378]
[1750414605477,0.95572905,2551.8,2551.7,3.91886378]
[1750414605854,0.95572828,2551.8,2551.7,3.91886378]
[1750414606480,0.95572718,2551.8,2551.7,3.91886378]
[1750414607983,0.95572837,2551.8,2551.7,3.91886378]
[1750414608574,0.95573342,2551.8,2551.7,3.91886378]
[1750414608886,0.58814484,2551.8,2551.7,12.23670254]
[1750414609088,6.344,2552.5,2552.3,3.91794036]
[1750414609271,0.95483634,2552.4,2552.3,3.91794036]
[1750414609476,0.95482808,2552.4,2552.3,3.91794036]
[1750414609672,0.95482808,2552.4,2552.1,3.91826742]
[1750414609870,0.95482808,2552.4,2551.8,0.8177]
[1750414609871,6.73544212,2552.2,2551.8,3.91865626]
[1750414610087,8.59865763,2552.1,2551.9,3.91856366]
[1750414610388,8.59865763,2552.1,2551.4,3.91941679]
[1750414610389,0.58761929,2552.0,2551.8,3.91876928]
[1750414610689,0.58761929,2551.9,2551.8,3.91876928]
[1750414611385,0.58763622,2551.9,2551.8,3.91876928]
[1750414611680,7.972,2552.1,2551.9,3.91862401]
[1750414611882,0.58758948,2552.0,2551.9,3.91862401]
[1750414612661,0.58758728,2552.0,2551.9,3.91862401]
[1750414613085,0.58758818,2552.0,2551.9,3.91862401]
[1750414613271,0.58758814,2552.0,2551.9,3.91862401]
[1750414613784,0.58753809,2552.0,2551.9,3.91862401]
[1750414614576,0.58753795,2552.0,2551.9,3.91862401]
[1750414614893,0.58753793,2552.0,2551.9,3.91862401]
[1750414616604,7.972,2552.1,2552.0,3.91849529]
[1750414616760,7.56060423,2552.1,2552.0,3.91849529]
[1750414617292,7.56058155,2552.1,2552.0,3.91849529]
[1750414617496,7.56056794,2552.1,2552.0,3.91849529]
[1750414617791,7.5605679,2552.1,2552.0,3.91849529]
[1750414618094,7.92773182,2552.1,2552.0,3.91849529]
[1750414618281,1.58373182,2552.1,2552.0,3.91849529]
[1750414618507,7.92673182,2552.1,2552.0,3.91849529]
[1750414619185,7.92672936,2552.1,2552.0,3.91849529]
[1750414619386,1.58365626,2552.1,2552.0,3.91849529]
[1750414619570,7.92665626,2552.1,2552.0,3.91849529]
[1750414619762,7.9266423,2552.1,2552.0,3.91849529]
[1750414620411,7.92664507,2552.1,2552.0,3.91849529]
[1750414620909,7.92660473,2552.1,2552.0,3.91849529]
[1750414622006,7.92659776,2552.1,2551.9,3.91855867]
[1750414622166,0.58736843,2552.0,2551.9,3.91855867]
[1750414623685,0.95444241,2552.0,2551.9,3.91855867]
[1750414624098,0.99351353,2552.0,2551.9,3.91855867]
[1750414624489,0.99348111,2552.0,2551.9,3.91855867]
[1750414624688,0.40614913,2552.0,2551.9,3.91855867]
[1750414624888,0.99347386,2552.0,2551.9,3.91855867]
[1750414625405,0.62639682,2552.0,2551.9,3.91855867]
[1750414625613,0.99348195,2552.0,2551.9,3.91855867]
[1750414625815,0.77323423,2552.0,2551.9,3.91855867]
[1750414626038,0.99348502,2552.0,2551.9,3.91855867]
[1750414626488,0.9934845,2552.0,2551.9,3.91855867]
[1750414626689,0.99349009,2552.0,2551.9,3.91855867]
[1750414626917,0.99349083,2552.0,2551.9,3.91855867]
[1750414627413,0.95441971,2552.0,2551.9,3.91855867]
[1750414627718,6.97210559,2552.1,2552.0,3.91849529]
[1750414627873,7.92658067,2552.1,2552.0,3.91849529]
[1750414628309,7.55947487,2552.1,2552.0,3.91849529]
[1750414628509,7.92658132,2552.1,2551.9,3.91857138]
[1750414628716,0.95447573,2552.0,2551.9,3.91857138]
[1750414629036,0.99354685,2552.0,2551.8,3.91874449]
[1750414629176,0.58737633,2551.9,2551.8,3.91874449]
[1750414630416,0.58744491,2551.9,2551.8,3.91874449]
[1750414631616,0.58747162,2551.9,2551.8,3.91874449]
[1750414632119,0.95466678,2551.9,2551.8,3.91874449]
[1750414632719,0.954669,2551.9,2551.8,3.91874449]
[1750414633118,0.58747162,2551.9,2551.8,3.91874449]
[1750414633284,0.03907112,2552.0,2551.9,3.91864884]
[1750414633479,0.99378599,2552.0,2551.9,3.91864884]
[1750414633895,0.99382981,2552.0,2551.9,3.91864884]
[1750414634229,0.9939006,2552.0,2551.9,3.91864884]
[1750414634524,0.62665875,2552.0,2551.9,3.91864884]
[1750414634728,0.99390098,2552.0,2551.9,3.91864884]
[1750414635299,0.40631335,2552.0,2551.9,3.91864884]
[1750414635505,0.99403102,2552.0,2551.9,3.91864884]
[1750414635726,0.62670842,2552.0,2551.9,3.91864884]
[1750414636028,0.62910559,2552.1,2552.0,3.91849529]
[1750414636206,0.95501929,2552.1,2552.0,3.91849529]
[1750414637032,0.58769878,2552.1,2552.0,3.91849529]
[1750414638630,0.58771353,2552.1,2552.0,3.91849529]
[1750414638836,6.38007112,2552.4,2552.2,3.91816399]
[1750414639133,0.95507312,2552.3,2552.2,3.91816399]
[1750414639634,0.95507783,2552.3,2552.2,3.91816399]
[1750414639840,0.9550127,2552.3,2552.2,3.91816399]
[1750414640897,0.73460775,2552.3,2552.2,3.91816399]
[1750414641154,0.58763334,2552.3,2552.2,3.91816399]
[1750414641357,0.95490418,2552.3,2552.2,3.91816399]
[1750414641557,0.9548077,2552.3,2552.2,3.91816399]
[1750414641757,0.9547415,2552.3,2552.2,3.91816399]
[1750414643662,0.9547415,2552.3,2552.1,4.7301189]
[1750414643859,0.58753323,2552.2,2552.1,4.7301189]
[1750414644159,0.58749293,2552.2,2552.1,5.67430589]
[1750414644566,0.58746882,2552.2,2552.1,5.67430589]
[1750414645864,0.58744035,2552.2,2552.1,5.67430589]
[1750414646282,0.58743902,2552.2,2552.1,5.67430589]
[1750414646582,0.58743908,2552.2,2552.1,5.67430589]
[1750414646745,0.58743831,2552.2,2552.1,5.67430589]
[1750414647442,0.58744819,2552.2,2552.1,5.67430589]
[1750414648131,0.36715512,2552.2,2552.1,5.67430589]
[1750414648356,0.58743711,2552.2,2552.1,5.67430589]
[1750414649360,0.58741928,2552.2,2552.1,5.67430589]
[1750414649664,0.58741273,2552.2,2552.1,4.7301189]
[1750414650164,0.58741126,2552.2,2552.1,4.7301189]
[1750414650342,6.339,2552.4,2552.2,3.91816215]
[1750414650544,0.95452534,2552.3,2552.2,3.91816215]
[1750414650745,0.73425026,2552.3,2552.2,3.91816215]
[1750414650946,0.95451638,2552.3,2552.2,3.91816215]
[1750414651750,0.95451051,2552.3,2552.2,3.91816215]
[1750414651959,0.95448522,2552.3,2552.2,3.91816215]
[1750414652162,0.95448524,2552.3,2552.2,3.91816215]
[1750414652476,0.58738518,2552.3,2552.2,3.91816215]
[1750414652645,0.95449159,2552.3,2552.2,3.91816215]
[1750414653178,6.339,2552.4,2552.2,3.91816215]
[1750414653358,0.95447679,2552.3,2552.2,3.91816215]
[1750414653558,0.95447405,2552.3,2552.1,4.73005198]
[1750414653759,0.58736759,2552.2,2552.1,4.73005198]
[1750414654278,0.58736759,2552.2,2552.0,0.00951699]
[1750414654279,0.7758,2552.1,2552.0,0.00951699]
[1750414654481,1.76935501,2552.1,2552.0,0.00951699]
[1750414654681,1.76935501,2552.1,2552.0,3.92801228]
[1750414654886,0.58739138,2552.1,2552.0,0.00951699]
[1750414655382,0.95454319,2552.1,2552.0,0.00951699]
[1750414655686,0.626489,2552.1,2552.0,0.00951699]
[1750414655980,0.7733508,2552.1,2552.0,0.00951699]
[1750414656188,0.9936347,2552.1,2552.0,0.00951699]
[1750414656595,0.95456358,2552.1,2552.0,0.00951699]
[1750414658593,0.95458221,2552.1,2552.0,0.00951699]
[1750414658961,1.72748221,2552.1,2552.0,0.00951699]
[1750414659472,1.76655333,2552.1,2552.0,0.00951699]
[1750414660002,1.76658057,2552.1,2552.0,0.00951699]
[1750414660177,5.68499877,2552.1,2552.0,0.00951699]
[1750414660380,1.76665702,2552.1,2552.0,0.00951699]
[1750414660573,1.76663805,2552.1,2552.0,0.00951699]
[1750414661180,5.6849798,2552.1,2552.0,0.00951699]
[1750414661388,12.02304334,2552.1,2552.0,0.00951699]
[1750414661585,11.98398674,2552.1,2552.0,0.00951699]
[1750414661781,8.06568279,2552.1,2552.0,0.00951699]
[1750414661965,7.69844161,2552.1,2552.0,0.00951699]
[1750414662169,7.73751273,2552.1,2552.0,0.00951699]
[1750414662912,7.73747404,2552.1,2552.0,3.92801228]
[1750414663202,7.69835755,2552.1,2552.0,3.92801228]
[1750414663402,7.73742213,2552.1,2552.0,0.00951699]
[1750414663566,7.73744118,2552.1,2552.0,0.00951699]
[1750414664315,7.69837069,2552.1,2552.0,0.00951699]
[1750414664671,7.4780544,2552.1,2552.0,0.00951699]
[1750414664902,7.69834704,2552.1,2552.0,0.00951699]
[1750414665210,7.69834653,2552.1,2552.0,0.00951699]
[1750414665412,7.69834653,2552.1,2552.0,3.92801228]
[1750414666298,7.69834653,2552.1,2552.0,0.00951699]
[1750414666500,7.73741765,2552.1,2552.0,0.00951699]
[1750414667388,7.69834653,2552.1,2552.0,0.00951699]
[1750414667687,7.73740179,2552.1,2552.0,0.00951699]
[1750414667889,7.73740179,2552.1,2552.0,3.92801228]
[1750414668199,7.69833067,2552.1,2552.0,3.92801228]
[1750414669308,0.58743067,2552.1,2552.0,3.92801228]
[1750414669619,6.92543067,2552.1,2552.0,3.92801228]
[1750414670203,6.92537694,2552.1,2552.0,3.92801228]
[1750414670402,6.92534404,2552.1,2552.0,3.92801228]
[1750414671828,6.92535131,2552.1,2552.0,3.92801228]
[1750414672302,6.92535127,2552.1,2552.0,3.92801228]
[1750414672831,6.92535924,2552.1,2552.0,3.92801228]
[1750414673331,6.92537492,2552.1,2552.0,3.92801228]
[1750414674629,6.96444604,2552.1,2552.0,0.00951699]
[1750414675330,11.6691748,2552.1,2552.0,0.00951699]
[1750414675537,11.63011501,2552.1,2552.0,0.00951699]
[1750414675832,11.63012023,2552.1,2552.0,0.00951699]
[1750414676034,11.63013846,2552.1,2552.0,0.00951699]
[1750414676533,11.99723928,2552.1,2552.0,0.00951699]
[1750414676928,11.99718746,2552.1,2552.0,0.00951699]
[1750414677134,11.99718703,2552.1,2552.0,0.00951699]
[1750414677795,11.99711572,2552.1,2552.0,0.00951699]
[1750414677999,8.07877397,2552.1,2552.0,0.00951699]
[1750414678409,8.07874434,2552.1,2552.0,0.00951699]
[1750414678863,8.07866697,2552.1,2552.0,0.00951699]
[1750414679228,7.85842844,2552.1,2552.0,0.00951699]
[1750414679463,8.11773736,2552.1,2552.0,0.00951699]
[1750414679663,8.07866624,2552.1,2552.0,0.00951699]
[1750414680766,1.74068267,2552.1,2552.0,0.00951699]
[1750414680965,8.11675379,2552.1,2552.0,0.00951699]
[1750414681170,8.07769249,2552.1,2552.0,0.00951699]
[1750414681677,8.07774378,2552.1,2552.0,0.00951699]
[1750414681836,8.07777474,2552.1,2552.0,0.00951699]
[1750414682574,8.07782599,2552.1,2552.0,0.00951699]
[1750414683078,8.07782585,2552.1,2552.0,0.00951699]
[1750414683647,0.95452585,2552.1,2552.0,3.92801228]
[1750414683874,0.95452585,2552.1,2552.0,4.68821228]
[1750414684346,0.95462911,2552.1,2552.0,3.92801228]
[1750414684550,7.69007123,2552.1,2552.0,0.00951699]
[1750414684774,11.64761134,2552.1,2552.0,0.00951699]
[1750414684983,11.60854022,2552.1,2552.0,0.00951699]
[1750414685478,11.241319,2552.1,2552.0,0.00951699]
[1750414685690,0.58753513,2552.1,2552.0,0.00951699]
[1750414685890,6.37607112,2552.1,2552.0,0.00951699]
[1750414686193,6.96362204,2552.1,2552.0,0.00951699]
[1750414686687,6.96363367,2552.1,2552.0,0.00951699]
[1750414687074,6.96365734,2552.1,2552.0,0.00951699]
[1750414687380,10.88199909,2552.1,2552.0,0.00951699]
[1750414687550,10.84292953,2552.1,2552.0,0.00951699]
[1750414687754,6.92458778,2552.1,2552.0,0.00951699]
[1750414687979,6.9636589,2552.1,2552.0,0.00951699]
[1750414689392,6.96371026,2552.1,2552.0,0.00951699]
[1750414689594,6.96370675,2552.1,2552.0,0.00951699]
[1750414690078,6.96370105,2552.1,2552.0,0.00951699]
[1750414690256,10.8820428,2552.1,2552.0,0.00951699]
[1750414690458,10.84297168,2552.1,2552.0,0.00951699]
[1750414690690,6.92463097,2552.1,2552.0,0.00951699]
[1750414690858,6.96370437,2552.1,2552.0,0.00951699]
[1750414691292,6.59643601,2552.1,2552.0,0.00951699]
[1750414691470,6.96371847,2552.1,2552.0,0.00951699]
[1750414691794,10.88206481,2552.1,2552.0,0.00951699]
[1750414691992,10.84299443,2552.1,2552.0,0.00951699]
[1750414692167,6.92465268,2552.1,2552.0,0.00951699]
[1750414692363,8.5867238,2552.1,2552.0,0.00951699]
[1750414692568,8.5476413,2552.1,2552.0,0.00951699]
[1750414692770,8.54761928,2552.1,2552.0,0.00951699]
[1750414693281,2.2106185,2552.1,2552.0,0.00951699]
[1750414693481,0.62668962,2552.1,2552.0,0.00951699]
[1750414693682,8.58668962,2552.1,2552.0,0.00951699]
[1750414693884,8.5476185,2552.1,2552.0,0.00951699]
[1750414694083,8.54762185,2552.1,2552.0,0.00951699]
[1750414694380,8.5476268,2552.1,2552.0,0.00951699]
[1750414695253,8.54763391,2552.1,2552.0,0.00951699]
[1750414695452,7.96,2552.1,2552.0,0.00951699]
[1750414695694,0.58764933,2552.1,2552.0,0.00951699]
[1750414695890,8.1803685,2552.1,2552.0,0.00951699]
[1750414696094,8.54763643,2552.1,2552.0,0.00951699]
[1750414696298,0.58763643,2552.1,2552.0,3.92801228]
[1750414696464,8.54763643,2552.1,2552.0,4.32081351]
[1750414696663,8.54762927,2552.1,2552.0,4.32081351]
[1750414697356,8.54762927,2552.1,2552.0,5.13661351]
[1750414697757,8.54762927,2552.1,2552.0,1.21811822]
[1750414697972,8.54761928,2552.1,2552.0,0.00951699]
[1750414698372,8.54764112,2552.1,2552.0,0.00951699]
[1750414699276,8.5476426,2552.1,2552.0,0.00951699]
[1750414699476,0.5876426,2552.1,2552.0,0.00951699]
[1750414699676,8.54665056,2552.1,2552.0,3.92801228]
[1750414699970,8.54665056,2552.1,2552.0,0.00951699]
[1750414700187,8.54665054,2552.1,2552.0,0.00951699]
[1750414700701,8.54666623,2552.1,2552.0,0.00951699]
[1750414700900,8.546683,2552.1,2552.0,0.00951699]
[1750414701198,7.959,2552.1,2552.0,0.00951699]
[1750414701414,8.54668292,2552.1,2552.0,0.00951699]
[1750414701710,8.54668292,2552.1,2552.0,4.78771904]
[1750414701879,2.21068292,2552.1,2552.0,4.78771904]
[1750414702084,8.54667644,2552.1,2552.0,4.78771904]
[1750414702293,8.54667299,2552.1,2552.0,4.78771904]
[1750414702475,8.54671154,2552.1,2552.0,4.78771904]
[1750414702911,8.54671154,2552.1,2552.0,0.86922375]
[1750414703088,8.54671154,2552.1,2552.0,4.78771904]
[1750414703287,8.54673552,2552.1,2552.0,4.78771904]
[1750414703699,8.54673552,2552.1,2552.0,0.86922375]
[1750414703920,0.58773552,2552.1,2552.0,0.00951699]
[1750414704106,6.92373692,2552.1,2552.0,0.00951699]
[1750414705041,6.92376674,2552.1,2552.0,0.00951699]
[1750414706844,6.336,2552.1,2552.0,0.00951699]
[1750414707013,6.92379262,2552.1,2552.0,0.00951699]
[1750414708028,6.92378934,2552.1,2552.0,0.00951699]
[1750414709142,6.9238006,2552.1,2552.0,0.00951699]
[1750414709536,6.92380443,2552.1,2552.0,0.00951699]
[1750414709742,6.92380253,2552.1,2552.0,3.92801228]
[1750414709938,0.58780253,2552.1,2552.0,4.78771272]
[1750414710469,0.36735296,2552.1,2552.0,4.78771272]
[1750414710670,0.5877641,2552.1,2552.0,4.78771272]
[1750414711548,0.58771307,2552.1,2552.0,4.78771272]
[1750414712866,0.36735296,2552.1,2552.0,4.78771272]
[1750414714036,6.336,2552.2,2552.0,4.78771272]
[1750414716561,6.336,2552.2,2552.1,3.91834175]
[1750414717447,6.336,2552.2,2552.1,4.78895979]
[1750414717758,1.18060846,2552.6,2552.2,3.91808451]
[1750414717950,1.622,2552.4,2552.3,3.91803471]
[1750414718876,1.622,2552.4,2552.2,3.91811048]
[1750414719062,1.622,2552.4,2552.3,0.86080965]
[1750414720864,1.622,2552.4,2552.3,4.77884436]
[1750414721546,1.622,2552.4,2552.3,0.86080965]
[1750414721748,1.66107112,2552.4,2552.1,3.91825635]
[1750414722324,1.66107112,2552.4,2552.2,3.91818282]
[1750414722725,1.66107112,2552.4,2552.1,3.91825508]
[1750414722953,10.6924995,2552.4,2552.0,0.00951699]
[1750414723142,7.956,2552.3,2552.0,3.9279912]
[1750414723343,0.03907112,2552.2,2552.0,3.9279912]
[1750414724836,7.99507112,2552.3,2552.1,3.91834175]
[1750414725037,7.956,2552.3,2552.1,3.91834175]
[1750414725250,7.99507112,2552.3,2552.1,3.91834175]
[1750414725768,7.956,2552.2,2552.1,3.91834175]
[1750414727782,8.17624703,2552.2,2552.1,3.91834175]
[1750414727999,8.54332466,2552.2,2552.1,3.91834175]
[1750414728455,8.54333515,2552.2,2552.1,3.91834175]
[1750414729275,8.54336026,2552.2,2552.1,3.91834175]
[1750414729780,8.17625068,2552.2,2552.1,3.91834175]
[1750414729988,8.5433704,2552.2,2552.1,3.91834175]
[1750414730583,8.54339226,2552.2,2552.1,3.91834175]
[1750414731494,8.5434223,2552.2,2552.1,3.91834175]
[1750414731984,8.54342871,2552.2,2552.1,3.91834175]
[1750414732886,8.54242871,2552.2,2552.1,3.91834175]
[1750414733084,8.5424374,2552.2,2552.1,3.91834175]
[1750414733383,8.54243804,2552.2,2552.1,3.91834175]
[1750414733588,0.58748877,2552.2,2552.1,3.91834175]
[1750414733905,8.54248877,2552.2,2552.1,3.91834175]
[1750414734250,8.54248147,2552.2,2552.1,3.91834175]
[1750414734451,8.5424907,2552.2,2552.1,3.91834175]
[1750414734786,0.5874907,2552.2,2552.1,3.91834175]
[1750414734993,8.5424752,2552.2,2552.1,4.70297696]
[1750414735203,8.5424752,2552.2,2552.1,3.91834175]
[1750414735407,8.54249846,2552.2,2552.1,3.91834175]
[1750414735605,8.17532881,2552.2,2552.1,3.91834175]
[1750414735775,8.54254215,2552.2,2552.1,3.91834175]
[1750414736109,8.5425389,2552.2,2552.1,3.91834175]
[1750414736704,7.955,2552.2,2552.1,3.91834175]
[1750414736904,8.54254659,2552.2,2552.1,3.91834175]
[1750414738272,8.54263246,2552.2,2552.1,3.91834175]
[1750414738472,8.54263242,2552.2,2552.1,3.91834175]
[1750414739005,8.17536217,2552.2,2552.1,3.91834175]
[1750414739311,8.54263133,2552.2,2552.1,3.91834175]
[1750414739812,8.54270226,2552.2,2552.1,3.91834175]